lending/lending_fUSD_20240710
["ID","MTS","AMOUNT","RATE_DAILY","PERIOD"]
[331681799,1720633833990,-162957.4205,0.000138,2]
[331681800,1720633833999,-375.69947764,0.00013811,2]
[331681801,1720633834009,-375.69947764,0.00013833,2]
[331681802,1720633834021,-150.0,0.00013848,2]
[331681803,1720633834033,-500.0,0.00013854,2]
[331681804,1720633834044,-402.28,0.00013854,2]
[331681805,1720633834054,-500.0,0.00013854,2]
[331681806,1720633834063,-500.0,0.00013854,2]
[331681807,1720633834073,-500.0,0.00013854,2]
[331681808,1720633834082,-500.0,0.00013854,2]
[331681809,1720633834091,-500.0,0.00013854,2]
[331681810,1720633834100,-500.0,0.00013854,2]
[331681811,1720633834109,-500.0,0.00013854,2]
[331681812,1720633834119,-500.0,0.00013854,2]
[331681813,1720633834128,-500.0,0.00013854,2]
[331681814,1720633834138,-500.0,0.00013854,2]
[331681815,1720633834149,-500.0,0.00013854,2]
[331681816,1720633834159,-683.83,0.00013854,2]
[331681817,1720633834168,-500.0,0.00013854,2]
[331681818,1720633834178,-8189.59,0.00013854,2]
[331681819,1720633834187,-500.0,0.00013854,2]
[331681820,1720633834196,-3177.74,0.00013854,2]
[331681821,1720633834205,-375.69947764,0.00013856,2]
[331681822,1720633834214,-375.69947764,0.00013878,2]
[331681823,1720633834223,-36828.36370397,0.0001388,2]
[331681824,1720633834232,-500.0,0.00013887,2]
[331681825,1720633834241,-3000.0,0.00013888,2]
[331681826,1720633834251,-500.0,0.00013888,2]
[331681827,1720633834260,-500.0,0.00013888,2]
[331681828,1720633834270,-202.09664997,0.00013889,2]
[331681829,1720633834279,-218.22,0.0001389,3]
[331681830,1720633834288,-156.06582334,0.00013899,2]
[331681831,1720633834297,-375.69947764,0.000139,2]
[331681832,1720633834307,-271.31,0.00013909,2]
[331681833,1720633834316,-398.09,0.00013909,2]
[331681834,1720633834325,-207.65,0.00013909,2]
[331681835,1720633834335,-500.0,0.00013909,2]
[331681836,1720633834344,-500.0,0.00013909,2]
[331681837,1720633834354,-500.0,0.00013909,2]
[331681838,1720633834364,-500.0,0.00013909,2]
[331681839,1720633834373,-328.61910633,0.00013909,2]
[331681840,1720633834383,-500.0,0.00013909,2]
[331681841,1720633834393,-500.0,0.00013909,2]
[331681842,1720633834402,-500.0,0.00013909,2]
[331681843,1720633834411,-500.0,0.00013909,2]
[331681844,1720633834421,-683.83,0.00013909,2]
[331681845,1720633834430,-500.0,0.00013909,2]
[331681846,1720633834439,-8189.59,0.00013909,2]
[331681847,1720633834448,-329.21981699,0.00013909,2]
[331681848,1720633834457,-3177.74,0.00013909,2]
[331681849,1720633834467,-150.0,0.00013929,2]
[331681850,1720633834476,-413.659999,0.00013963,2]
[331681851,1720633834485,-500.0,0.00013963,2]
[331681852,1720633834496,-500.0,0.00013963,2]
[331681853,1720633834505,-500.0,0.00013963,2]
[331681854,1720633834514,-500.0,0.00013963,2]
[331681855,1720633834523,-500.0,0.00013963,2]
[331681856,1720633834532,-500.0,0.00013963,2]
[331681857,1720633834541,-500.0,0.00013963,2]
[331681858,1720633834550,-683.83,0.00013963,2]
[331681859,1720633834559,-500.0,0.00013963,2]
[331681860,1720633834568,-8189.59,0.00013963,2]
[331681861,1720633834577,-3177.74,0.00013963,2]
[331681862,1720633834586,-150.0,0.00013974,2]
[331681863,1720633834595,-179.96,0.00013988,2]
[331681864,1720633834604,-237.89260728,0.00013989,2]
[331681865,1720633834613,-500.0,0.00013998,2]
[331681866,1720633834625,-301.34,0.00013998,2]
[331681867,1720633834635,-1107.51,0.00013998,2]
[331681868,1720633834647,-155.0,0.00013998,2]
[331681869,1720633834657,-500.0,0.00013998,2]
[331681870,1720633834668,-500.0,0.00013998,2]
[331681871,1720633834678,-256.17,0.00013998,2]
[331681872,1720633834687,-421.58,0.00013998,2]
[331681873,1720633834696,-337.51,0.00013998,2]
[331681874,1720633834705,-544.79,0.00013998,2]
[331681875,1720633834714,-500.0,0.00013998,2]
[331681876,1720633834724,-350.25,0.00013998,2]
[331681877,1720633834734,-271.35,0.00013998,2]
[331681878,1720633834743,-500.0,0.00013998,2]
[331681879,1720633834752,-1026.82,0.00013998,2]
[331681880,1720633834762,-150.85,0.00013998,2]
[331681881,1720633834772,-155.0,0.00013999,2]
[331681882,1720633834782,-155.0,0.00013999,2]
[331681883,1720633834791,-552.0,0.00014,2]
[331681884,1720633834801,-9837.23316734,0.00014,2]
[331681885,1720633834814,-1112.73839352,0.00014,2]
[331681886,1720633834825,-327.85685687,0.00014,2]
[331681887,1720633834837,-343.53609813,0.00014,2]
[331681888,1720633834850,-298.3,0.00014,2]
[331681889,1720633834861,-1238.71616534,0.00014,2]
[331681890,1720633834872,-6778.84753364,0.00014,2]
[331681891,1720633834883,-555.90330277,0.00014,2]
[331681892,1720633834894,-2253.76645182,0.00014,2]
[331681897,1720633837666,-820.5999,0.00014,2]
[331681898,1720633838359,-2820.32,0.00014,2]
[331681899,1720633838371,-6547.49288137,0.00014,2]
[331681900,1720633838383,-1548.2348235,0.00014,2]
[331681901,1720633838449,-614.60712979,0.00014,2]
[331681902,1720633838460,-6274.0,0.00014,2]
[331682029,1720633839804,-29167.71899999,0.00014,2]
[331682032,1720633839816,-2589.24934518,0.00014,2]
[331682512,1720633844441,-500.0,0.00013799,2]
[331682514,1720633844450,-500.0,0.00013799,2]
[331682516,1720633844459,-439.15883773,0.00013854,2]
[331682518,1720633844470,-60.84116227,0.00013854,2]
[331682520,1720633844479,-500.0,0.00013909,2]
[331682522,1720633844488,-500.0,0.00013963,2]
[331682525,1720633844497,-19667.25659813,0.00014,2]
[331682644,1720633845804,-5191.19038756,0.00014,2]
[331682645,1720633845818,-1470.7035555,0.00014,2]
[331682646,1720633845830,-724.52419805,0.00014,2]
[331682647,1720633845843,-8328.27221717,0.00014,2]
[331682648,1720633845855,-2207.1800953,0.00014,2]
[331682649,1720633845868,-1741.6135,0.00014,2]
[331682651,1720633845885,-1549.225,0.00014,2]
[331682653,1720633845897,-335.45,0.00014,2]
[331682656,1720633845911,-82853.22428074,0.00014,2]
[331682658,1720633845922,-234053.36431749,0.00014,2]
[331682660,1720633845933,-424.35038744,0.00014,2]
[331682661,1720633846050,-1014.81,0.00014,2]
[331682662,1720633846062,-11651.21138074,0.00014,2]
[331682663,1720633846076,-2547.92756546,0.00014,2]
[331682664,1720633846088,-3219.0,0.00014,2]
[331682665,1720633846120,-5083.8,0.00014,2]
[331682666,1720633960154,2215.1736,0.00011902,2]
[331682667,1720634063923,7820.18595613,0.00011902,2]
[331682668,1720634400634,315.63,0.00011079,2]
[331682671,1720634600540,3320.25114551,0.00011199,2]
[331682673,1720634675078,155.0,0.00011199,2]
[331682675,1720634690087,155.0,0.00011199,2]
[331682676,1720634768948,301.91353444,0.00011199,2]
[331682679,1720634804681,382.12258582,0.00011199,2]
[331682686,1720634939612,299.84,0.00011028,2]
[331682707,1720635032003,-530.85773798,0.00012302,2]
[331682708,1720635032013,-193.32,0.00012746,2]
[331682709,1720635032023,-250.0,0.00012924,2]
[331682710,1720635032032,-179.96,0.00012927,2]
[331682711,1720635032042,-1000.0,0.00012932,2]
[331682712,1720635032051,-932.52924195,0.00013128,2]
[331682713,1720635032061,-600.0,0.0001323,2]
[331682714,1720635032070,-299.84,0.00013292,2]
[331682715,1720635032079,-153.942949,0.00013316,2]
[331682716,1720635032088,-462.12662794,0.00013472,2]
[331682717,1720635032098,-3000.0,0.00013699,2]
[331682718,1720635032107,-169.21,0.00013699,2]
[331682719,1720635032116,-2084.23631615,0.00013736,2]
[331682720,1720635032126,-600.0,0.00013781,2]
[331682721,1720635032135,-150.0,0.00013798,2]
[331682722,1720635032145,-410.94346813,0.00013799,2]
[331682723,1720635032154,-500.0,0.00013799,2]
[331682724,1720635032164,-500.0,0.00013799,2]
[331682725,1720635032174,-500.0,0.00013799,2]
[331682726,1720635032183,-451.99172712,0.00013799,2]
[331682727,1720635032193,-500.0,0.00013799,2]
[331682728,1720635032202,-500.0,0.00013799,2]
[331682729,1720635032212,-500.0,0.00013799,2]
[331682730,1720635032221,-500.0,0.00013799,2]
[331682731,1720635032230,-500.0,0.00013799,2]
[331682732,1720635032240,-500.0,0.00013799,2]
[331682733,1720635032250,-500.0,0.00013799,2]
[331682734,1720635032259,-500.0,0.00013799,2]
[331682735,1720635032269,-500.0,0.00013799,2]
[331682736,1720635032278,-500.0,0.00013799,2]
[331682737,1720635032287,-500.0,0.00013799,2]
[331682738,1720635032296,-500.0,0.00013799,2]
[331682739,1720635032306,-500.0,0.00013799,2]
[331682740,1720635032315,-500.0,0.00013799,2]
[331682741,1720635032324,-500.0,0.00013799,2]
[331682742,1720635032333,-500.0,0.00013799,2]
[331682743,1720635032343,-500.0,0.00013799,2]
[331682744,1720635032352,-500.0,0.00013799,2]
[331682745,1720635032361,-500.0,0.00013799,2]
[331682746,1720635032371,-500.0,0.00013799,2]
[331682747,1720635032380,-500.0,0.00013799,2]
[331682748,1720635032390,-984.04,0.00013799,2]
[331682749,1720635032399,-405.61712679,0.00013799,2]
[331682750,1720635032408,-500.0,0.00013799,2]
[331682751,1720635032417,-500.0,0.00013799,2]
[331682752,1720635032426,-500.0,0.00013799,2]
[331682753,1720635032436,-500.0,0.00013799,2]
[331682754,1720635032446,-500.0,0.00013799,2]
[331682755,1720635032457,-500.0,0.00013799,2]
[331682756,1720635032467,-500.0,0.00013799,2]
[331682757,1720635032476,-500.0,0.00013799,2]
[331682758,1720635032485,-500.0,0.00013799,2]
[331682759,1720635032495,-269.5857796,0.00013799,2]
[331682760,1720635032504,-500.0,0.00013799,2]
[331682761,1720635032513,-500.0,0.00013799,2]
[331682762,1720635032522,-500.0,0.00013799,2]
[331682763,1720635032531,-500.0,0.00013799,2]
[331682764,1720635032540,-500.0,0.00013799,2]
[331682765,1720635032550,-500.0,0.00013799,2]
[331682766,1720635032559,-500.0,0.00013799,2]
[331682767,1720635032568,-500.0,0.00013799,2]
[331682768,1720635032577,-500.0,0.00013799,2]
[331682769,1720635032587,-500.0,0.00013799,2]
[331682770,1720635032596,-500.0,0.00013799,2]
[331682771,1720635032605,-500.0,0.00013799,2]
[331682772,1720635032614,-500.0,0.00013799,2]
[331682773,1720635032624,-500.0,0.00013799,2]
[331682774,1720635032633,-500.0,0.00013799,2]
[331682775,1720635032643,-500.0,0.00013799,2]
[331682776,1720635032660,-347.91640768,0.00013799,2]
[331682777,1720635032674,-500.0,0.00013854,2]
[331682778,1720635032685,-500.0,0.00013854,2]
[331682779,1720635032694,-984.04,0.00013854,2]
[331682780,1720635032704,-500.0,0.00013854,2]
[331682781,1720635032713,-276.05,0.00013854,2]
[331682782,1720635032723,-12519.55465648,0.000139,2]
[331682783,1720635032733,-500.0,0.00013909,2]
[331682784,1720635032743,-984.04,0.00013909,2]
[331682785,1720635032752,-491.54510247,0.00013909,2]
[331682786,1720635032761,-500.0,0.00013963,2]
[331682787,1720635032859,-984.04,0.00013963,2]
[331682788,1720635032869,-505.05,0.0001399,2]
[331682789,1720635032878,-505.05,0.0001399,2]
[331682790,1720635032887,-505.05,0.0001399,2]
[331682791,1720635032896,-505.05,0.0001399,2]
[331682792,1720635032905,-505.05,0.0001399,2]
[331682793,1720635032914,-505.05,0.0001399,2]
[331682794,1720635032923,-505.05,0.0001399,2]
[331682795,1720635032933,-505.05,0.0001399,2]
[331682796,1720635032942,-505.05,0.0001399,2]
[331682797,1720635032951,-505.05,0.0001399,2]
[331682798,1720635032961,-505.05,0.0001399,2]
[331682799,1720635032971,-505.05,0.0001399,2]
[331682800,1720635032980,-505.05,0.0001399,2]
[331682801,1720635032989,-505.05,0.0001399,2]
[331682802,1720635032998,-505.05,0.0001399,2]
[331682803,1720635033007,-505.05,0.0001399,2]
[331682804,1720635033016,-505.05,0.0001399,2]
[331682805,1720635033024,-505.05,0.0001399,2]
[331682806,1720635033034,-505.05,0.0001399,2]
[331682807,1720635033043,-505.05,0.0001399,2]
[331682808,1720635033053,-505.05,0.0001399,2]
[331682809,1720635033063,-505.05,0.0001399,2]
[331682810,1720635033074,-505.05,0.0001399,2]
[331682811,1720635033083,-505.05,0.0001399,2]
[331682812,1720635033092,-505.05,0.0001399,2]
[331682813,1720635033101,-505.05,0.0001399,2]
[331682814,1720635033111,-505.05,0.0001399,2]
[331682815,1720635033120,-505.05,0.0001399,2]
[331682816,1720635033129,-505.05,0.0001399,2]
[331682817,1720635033140,-505.05,0.0001399,2]
[331682818,1720635033149,-505.05,0.0001399,2]
[331682819,1720635033160,-505.05,0.0001399,2]
[331682820,1720635033169,-505.05,0.0001399,2]
[331682821,1720635033179,-505.05,0.0001399,2]
[331682822,1720635033190,-505.05,0.0001399,2]
[331682823,1720635033199,-505.05,0.0001399,2]
[331682824,1720635033211,-505.05,0.0001399,2]
[331682825,1720635033220,-505.05,0.0001399,2]
[331682826,1720635033229,-505.05,0.0001399,2]
[331682827,1720635033239,-505.05,0.0001399,2]
[331682828,1720635033248,-505.05,0.0001399,2]
[331682829,1720635033257,-505.05,0.0001399,2]
[331682830,1720635033269,-505.05,0.0001399,2]
[331682831,1720635033278,-505.05,0.0001399,2]
[331682832,1720635033287,-505.05,0.0001399,2]
[331682833,1720635033296,-505.05,0.0001399,2]
[331682834,1720635033308,-505.05,0.0001399,2]
[331682836,1720635033319,-505.05,0.0001399,2]
[331682838,1720635033329,-505.05,0.0001399,2]
[331682840,1720635033339,-505.05,0.0001399,2]
[331682842,1720635033350,-505.05,0.0001399,2]
[331682844,1720635033361,-505.05,0.0001399,2]
[331682846,1720635033371,-505.05,0.0001399,2]
[331682848,1720635033382,-505.05,0.0001399,2]
[331682850,1720635033392,-505.05,0.0001399,2]
[331682852,1720635033401,-505.05,0.0001399,2]
[331682854,1720635033411,-505.05,0.0001399,2]
[331682856,1720635033420,-505.05,0.0001399,2]
[331682858,1720635033429,-505.05,0.0001399,2]
[331682860,1720635033440,-505.05,0.0001399,2]
[331682862,1720635033450,-505.05,0.0001399,2]
[331682864,1720635033460,-505.05,0.0001399,2]
[331682866,1720635033470,-505.05,0.0001399,2]
[331682868,1720635033480,-505.05,0.0001399,2]
[331682870,1720635033489,-505.05,0.0001399,2]
[331682872,1720635033498,-505.05,0.0001399,2]
[331682874,1720635033507,-505.05,0.0001399,2]
[331682875,1720635033516,-505.05,0.0001399,2]
[331682876,1720635033526,-505.05,0.0001399,2]
[331682877,1720635033535,-505.05,0.0001399,2]
[331682878,1720635033545,-505.05,0.0001399,2]
[331682879,1720635033554,-505.05,0.0001399,2]
[331682880,1720635033564,-505.05,0.0001399,2]
[331682881,1720635033573,-505.05,0.0001399,2]
[331682882,1720635033583,-505.05,0.0001399,2]
[331682883,1720635033592,-505.05,0.0001399,2]
[331682884,1720635033601,-505.05,0.0001399,2]
[331682885,1720635033611,-505.05,0.0001399,2]
[331682886,1720635033620,-505.05,0.0001399,2]
[331682887,1720635033629,-505.05,0.0001399,2]
[331682888,1720635033638,-267.1,0.0001399,2]
[331682889,1720635033647,-505.05,0.0001399,2]
[331682890,1720635033656,-267.1,0.0001399,2]
[331682891,1720635033666,-505.05,0.0001399,2]
[331682892,1720635033676,-505.05,0.0001399,2]
[331682893,1720635033686,-267.1,0.0001399,2]
[331682894,1720635033695,-505.05,0.0001399,2]
[331682895,1720635033704,-267.1,0.0001399,2]
[331682896,1720635033713,-505.05,0.0001399,2]
[331682897,1720635033723,-505.05,0.0001399,2]
[331682898,1720635033732,-267.1,0.0001399,2]
[331682899,1720635033741,-505.05,0.0001399,2]
[331682900,1720635033751,-505.05,0.0001399,2]
[331682901,1720635033760,-505.05,0.0001399,2]
[331682902,1720635033769,-505.05,0.0001399,2]
[331682903,1720635033779,-505.05,0.0001399,2]
[331682904,1720635033788,-505.05,0.0001399,2]
[331682905,1720635033797,-505.05,0.0001399,2]
[331682906,1720635033806,-505.05,0.0001399,2]
[331682907,1720635033815,-505.05,0.0001399,2]
[331682908,1720635033824,-505.05,0.0001399,2]
[331682909,1720635033834,-505.05,0.0001399,2]
[331682910,1720635033843,-11915.9988,0.00013998,2]
[331682911,1720635033852,-157.28134079,0.00013999,2]
[331682912,1720635033862,-500.0,0.00013999,2]
[331682913,1720635033872,-500.0,0.00013999,2]
[331682914,1720635033882,-500.0,0.00013999,2]
[331682915,1720635033891,-500.0,0.00013999,2]
[331682916,1720635033900,-500.0,0.00013999,2]
[331682917,1720635033909,-2648.12,0.00013999,2]
[331682918,1720635033919,-159.03087696,0.00013999,2]
[331682919,1720635033929,-500.0,0.00013999,2]
[331682920,1720635033939,-500.0,0.00013999,2]
[331682921,1720635033948,-500.0,0.00013999,2]
[331682922,1720635033957,-1061.36,0.00013999,2]
[331682923,1720635033967,-500.0,0.00013999,2]
[331682924,1720635033977,-500.0,0.00013999,2]
[331682925,1720635033986,-500.0,0.00013999,2]
[331682926,1720635033995,-569.85,0.00013999,2]
[331682927,1720635034004,-500.0,0.00013999,2]
[331682928,1720635034013,-500.0,0.00013999,2]
[331682929,1720635034023,-500.0,0.00013999,2]
[331682930,1720635034033,-500.0,0.00013999,2]
[331682931,1720635034043,-500.0,0.00013999,2]
[331682932,1720635034052,-500.0,0.00013999,2]
[331682933,1720635034063,-500.0,0.00013999,2]
[331682934,1720635034072,-500.0,0.00013999,2]
[331682935,1720635034081,-500.0,0.00013999,2]
[331682936,1720635034090,-500.0,0.00013999,2]
[331682937,1720635034099,-500.0,0.00013999,2]
[331682938,1720635034109,-500.0,0.00013999,2]
[331682939,1720635034118,-500.0,0.00013999,2]
[331682940,1720635034127,-500.0,0.00013999,2]
[331682941,1720635034136,-500.0,0.00013999,2]
[331682942,1720635034146,-6824.65,0.00013999,2]
[331682943,1720635034155,-500.0,0.00013999,2]
[331682944,1720635034165,-500.0,0.00013999,2]
[331682945,1720635034174,-500.0,0.00013999,2]
[331682946,1720635034184,-500.0,0.00013999,2]
[331682947,1720635034193,-500.0,0.00013999,2]
[331682948,1720635034204,-500.0,0.00013999,2]
[331682949,1720635034214,-509.27,0.00013999,2]
[331682950,1720635034224,-192267.81685967,0.00014,2]
[331682951,1720635034233,-499411.37991321,0.00014,2]
[331682952,1720635034247,-11571.14143,0.00014,2]
[331682953,1720635034258,-12191.51498028,0.00014,2]
[331682954,1720635034270,-2884.024,0.00014,2]
[331682955,1720635034281,-12995.0,0.00014,2]
[331682956,1720635034298,-505.05,0.0001399,2]
[331682957,1720635034307,-377.35264769,0.00014,2]
[331682958,1720635034319,-2377.36767578,0.00014,2]
[331682959,1720635034330,-800.07111468,0.00014,2]
[331682960,1720635034348,-297.04785907,0.00014,2]
[331682961,1720635034360,-1913.12,0.00014,2]
[331682966,1720635038014,-781.88578096,0.00012302,2]
[331682967,1720635038027,-150.64346099,0.00012302,2]
[331682968,1720635038037,-505.05,0.0001399,2]
[331682969,1720635038047,-113.52966901,0.00013999,2]
[331682970,1720635038059,-384.59479513,0.00013999,2]
[331682971,1720635038071,-1.87553586,0.00013999,2]
[331682972,1720635038082,-366.52790274,0.00014,2]
[331682973,1720635038095,-347.93,0.00014,2]
[331682974,1720635038107,-734.70866164,0.00014,2]
[331682975,1720635038176,-3804.36369245,0.00014,2]
[331682976,1720635038188,-17521.13315211,0.00014,2]
[331682977,1720635038199,-28355.42344949,0.00014,2]
[331682978,1720635038270,-1015.57365664,0.00013999,2]
[331682979,1720635038283,-1522.20634336,0.00013999,2]
[331682980,1720635038293,-32380.10384142,0.00014,2]
[331682981,1720635038305,-31379.86762403,0.00014,2]
[331682982,1720635038370,-298.0119726,0.00014,2]
[331682983,1720635038382,-780.33589964,0.00014,2]
[331683139,1720635040122,-82757.37687966,0.00014,2]
[331683151,1720635040251,-411.10322206,0.00014,2]
[331683153,1720635040263,-3532.00000001,0.00014,2]
[331683156,1720635040275,-517.3092,0.00014,2]
[331683165,1720635040361,-259250.97790318,0.00014,2]
[331683167,1720635040371,-1000.0,0.00014,2]
[331683169,1720635040382,-1000.0,0.00014,2]
[331683171,1720635040392,-1000.0,0.00014,2]
[331683173,1720635040402,-1000.0,0.00014,2]
[331683175,1720635040412,-1000.0,0.00014,2]
[331683177,1720635040422,-1000.0,0.00014,2]
[331683179,1720635040432,-1000.0,0.00014,2]
[331683181,1720635040443,-1000.0,0.00014,2]
[331683183,1720635040454,-1000.0,0.00014,2]
[331683185,1720635040464,-1000.0,0.00014,2]
[331683187,1720635040473,-1000.0,0.00014,2]
[331683189,1720635040482,-825.58433486,0.00014,2]
[331683191,1720635040492,-2000.0,0.00014,2]
[331683193,1720635040501,-189.84,0.00014,2]
[331683195,1720635040511,-23162.04217427,0.00014,2]
[331683198,1720635040523,-623.19201893,0.00014,2]
[331683200,1720635040534,-1734.67193647,0.00014,2]
[331683499,1720635043120,-500.0,0.00013999,2]
[331683501,1720635043130,-861284.66204734,0.00014,2]
[331683503,1720635043142,-381.4185858,0.00014,2]
[331683513,1720635043240,-19827.33002448,0.00014,2]
[331683627,1720635044956,-814.55264413,0.00014,2]
[331683628,1720635044968,-3067.36856786,0.00014,2]
[331683629,1720635044979,-21604.11922491,0.00014,2]
[331683630,1720635044991,-3248.22772491,0.00014,2]
[331683631,1720635045002,-14791.05833248,0.00014,2]
[331683632,1720635045014,-382.12258582,0.00014,2]
[331683633,1720635045026,-6612.77208028,0.00014,2]
[331683634,1720635045037,-1732.275,0.00014,2]
[331683635,1720635045049,-367.69336575,0.00014,2]
[331683636,1720635045061,-1070.68609688,0.00014,2]
[331683637,1720635045072,-346.11167018,0.00014,2]
[331683638,1720635045084,-725.77704884,0.00014,2]
[331683639,1720635045095,-6400.89541296,0.00014,2]
[331683640,1720635046086,-856.45024414,0.00014,2]
[331683642,1720635046169,-4068.50721603,0.00014,2]
[331683643,1720635046181,-664.22252142,0.00014,2]
[331683644,1720635046193,-500.10126801,0.00014,2]
[331683645,1720635046207,-898.99522388,0.00014,2]
[331683646,1720635046221,-6248.55757461,0.00014,2]
[331683647,1720635046270,-302.524,0.00014,2]
[331683648,1720635046282,-4211.80490799,0.00014,2]
[331683649,1720635046294,-3941.16864385,0.00014,2]
[331683650,1720635046305,-1418.77048282,0.00014,2]
[331683651,1720635046317,-516.8461897,0.00014,2]
[331683652,1720635046358,-286008.14692994,0.00014,2]
[331683653,1720635046369,-1067.09053749,0.00014,2]
[331683654,1720635202324,989.61053108,0.00011199,2]
[331683655,1720635211277,1287.93227317,0.00011199,2]
[331683656,1720635229471,158.57023765,0.00011199,2]
[331683657,1720635384037,502.0,0.00012001,2]
[331683658,1720635468629,284.17,0.00011207,2]
[331683666,1720635827463,50000.0,0.00011207,2]
[331683667,1720635827490,97367.70466185,0.00011207,2]
[331683670,1720635854519,151.46,0.00027,120]
[331683671,1720635880889,7553.87470092,0.00011207,2]
[331683672,1720635956878,411.97119588,0.00011207,2]
[331683674,1720635974325,552.79358978,0.00011207,2]
[331683675,1720635975261,155.0,0.00011207,2]
[331683676,1720635976886,7016.6133395,0.00011207,2]
[331683677,1720635989037,20337.16110873,0.00011207,2]
[331683678,1720636006123,155.0,0.00011207,2]
[331683680,1720636046897,469.26710031,0.00011207,2]
[331683681,1720636083144,155.14051249,0.00011207,2]
[331683682,1720636083489,155.0,0.00011207,2]
[331683685,1720636105054,8462.32956516,0.00011207,2]
[331683686,1720636108306,269.96,0.00011115,2]
[331683694,1720636133503,1055.11995837,0.00011199,2]
[331683714,1720636180302,3116.81208306,0.00011199,2]
[331683720,1720636233017,-250.0,0.00012922,2]
[331683721,1720636233026,-250.68,0.00012929,2]
[331683722,1720636233036,-1250.0,0.00013,2]
[331683723,1720636233045,-250.0,0.00013052,2]
[331683724,1720636233054,-193.34,0.00013066,2]
[331683725,1720636233062,-200.0,0.00013114,2]
[331683726,1720636233071,-300.0,0.00013127,2]
[331683727,1720636233080,-2084.23631615,0.00013128,2]
[331683728,1720636233091,-3107.39847389,0.00013128,2]
[331683729,1720636233101,-313.82233916,0.00013367,2]
[331683730,1720636233111,-269.96,0.00013379,2]
[331683731,1720636233123,-3117.0,0.00013448,2]
[331683732,1720636233132,-299.7771014,0.00013574,2]
[331683733,1720636233141,-14555.43460796,0.00013574,2]
[331683734,1720636233151,-150.99,0.00013584,2]
[331683735,1720636233160,-169.21,0.00013699,2]
[331683736,1720636233169,-150.0,0.00013859,2]
[331683737,1720636233178,-19614.9716777,0.0001386,2]
[331683738,1720636233339,-790.15908962,0.0001386,2]
[331683740,1720636233351,-777.82664874,0.0001386,2]
[331683742,1720636233363,-759.08000022,0.0001386,2]
[331683743,1720636233374,-856.26166783,0.0001386,2]
[331683758,1720636238403,-299.77437466,0.0001386,2]
[331683759,1720636238421,-871.38553932,0.0001386,2]
[331683760,1720636238435,-1042.82955653,0.0001386,2]
[331683761,1720636238448,-622.21983407,0.0001386,2]
[331683762,1720636238460,-4071.84392656,0.0001386,2]
[331683763,1720636238471,-844.66137,0.0001386,2]
[331683764,1720636238481,-3000.0,0.00013888,2]
[331683765,1720636238492,-788.93887084,0.00013899,2]
[331683766,1720636238502,-155.0,0.00013899,2]
[331683767,1720636238512,-530.85773798,0.00013899,2]
[331683769,1720636238522,-931.73002263,0.00013899,2]
[331683771,1720636238532,-2300.0,0.000139,2]
[331683773,1720636238543,-179.28516623,0.000139,2]
[331683775,1720636238554,-169.84462217,0.000139,2]
[331683777,1720636238564,-341.53451892,0.000139,2]
[331683779,1720636238574,-3381.29529885,0.000139,2]
[331683781,1720636238584,-233.85367932,0.000139,2]